[Event "*** SCC Grand Prix: Titled Tuesday Blitz"]
[Site "Chess.com"]
[Date "2020.07.07"]
[Round "2"]
[White "DenLaz"]
[Black "GM4life"]
[Result "1/2-1/2"]
[WhiteElo "2685"]
[BlackElo "2337"]
[TimeControl "180+1"]
[EndTime "10:21:36 PDT"]
[Termination "Game drawn by repetition"]

1. Nf3 {[%clk 0:03:00.9]} 1... Nf6 {[%clk 0:02:58.3]} 2. c4 {[%clk 0:03:00.7]}
2... e6 {[%clk 0:02:58.2]} 3. g3 {[%clk 0:02:58.4]} 3... d5 {[%clk 0:02:58.6]}
4. Bg2 {[%clk 0:02:58.9]} 4... Be7 {[%clk 0:02:58.8]} 5. O-O {[%clk 0:02:59]}
5... O-O {[%clk 0:02:59.7]} 6. b3 {[%clk 0:02:59.4]} 6... c5 {[%clk 0:02:59.1]}
7. Bb2 {[%clk 0:02:59.3]} 7... Nc6 {[%clk 0:02:59.7]} 8. e3 {[%clk 0:02:55.9]}
8... d4 {[%clk 0:02:59.1]} 9. exd4 {[%clk 0:02:48.7]} 9... cxd4 {[%clk 0:03:00]}
10. d3 {[%clk 0:02:49.6]} 10... Bc5 {[%clk 0:02:53.5]} 11. Re1 {[%clk
0:02:46.5]} 11... Re8 {[%clk 0:02:53.4]} 12. Ne5 {[%clk 0:02:44.6]} 12... Nxe5
{[%clk 0:02:52.7]} 13. Rxe5 {[%clk 0:02:45.5]} 13... Qc7 {[%clk 0:02:52.8]} 14.
Re1 {[%clk 0:02:41]} 14... e5 {[%clk 0:02:52]} 15. Nd2 {[%clk 0:02:38.2]} 15...
Bg4 {[%clk 0:02:50.7]} 16. Qc2 {[%clk 0:02:36.6]} 16... Rad8 {[%clk 0:02:46.5]}
17. a3 {[%clk 0:02:35.2]} 17... a5 {[%clk 0:02:46]} 18. Ne4 {[%clk 0:02:26.1]}
18... Nxe4 {[%clk 0:02:44.4]} 19. Rxe4 {[%clk 0:02:27]} 19... Bf5 {[%clk
0:02:34.6]} 20. Re2 {[%clk 0:02:25.7]} 20... Re6 {[%clk 0:02:25.6]} 21. Rae1
{[%clk 0:02:22.8]} 21... Rde8 {[%clk 0:02:25.4]} 22. Bd5 {[%clk 0:02:16.7]}
22... Rh6 {[%clk 0:02:18.9]} 23. Qd2 {[%clk 0:02:12.5]} 23... Rb6 {[%clk
0:02:01.1]} 24. Qxa5 {[%clk 0:01:45.5]} 24... Bd6 {[%clk 0:01:33.1]} 25. b4
{[%clk 0:01:09]} 25... Ra6 {[%clk 0:01:26.3]} 26. Qxc7 {[%clk 0:01:07.7]} 26...
Bxc7 {[%clk 0:01:27.2]} 27. Bxb7 {[%clk 0:01:04.2]} 27... Ra7 {[%clk 0:01:27.1]}
28. Be4 {[%clk 0:01:00.5]} 28... Bg4 {[%clk 0:01:26.7]} 29. f3 {[%clk
0:00:59.1]} 29... Be6 {[%clk 0:01:27.1]} 30. Kg2 {[%clk 0:00:50.5]} 30... g6
{[%clk 0:01:27]} 31. Bc6 {[%clk 0:00:47.5]} 31... Rb8 {[%clk 0:01:25.8]} 32. Rc2
{[%clk 0:00:38.4]} 32... Kg7 {[%clk 0:01:25.7]} 33. Bd5 {[%clk 0:00:35.8]} 33...
Bf5 {[%clk 0:01:24.8]} 34. Rd1 {[%clk 0:00:33.3]} 34... h5 {[%clk 0:01:17.1]}
35. c5 {[%clk 0:00:32.3]} 35... h4 {[%clk 0:01:15.5]} 36. Bc4 {[%clk 0:00:32.1]}
36... hxg3 {[%clk 0:01:12.8]} 37. hxg3 {[%clk 0:00:33]} 37... Rh8 {[%clk
0:01:09.7]} 38. Rh1 {[%clk 0:00:31.7]} 38... Raa8 {[%clk 0:01:08.3]} 39. b5
{[%clk 0:00:29.6]} 39... Rxh1 {[%clk 0:01:07.6]} 40. Kxh1 {[%clk 0:00:30.5]}
40... Rh8+ {[%clk 0:01:07.3]} 41. Rh2 {[%clk 0:00:30.6]} 41... Rb8 {[%clk
0:01:06.7]} 42. b6 {[%clk 0:00:29.8]} 42... Bxb6 {[%clk 0:01:06.8]} 43. cxb6
{[%clk 0:00:29.7]} 43... Rxb6 {[%clk 0:01:07.7]} 44. f4 {[%clk 0:00:25.5]} 44...
f6 {[%clk 0:01:02.3]} 45. Re2 {[%clk 0:00:24.5]} 45... Bg4 {[%clk 0:00:57.4]}
46. Re1 {[%clk 0:00:23.3]} 46... Rxb2 {[%clk 0:00:56.2]} 47. Bd5 {[%clk
0:00:19.8]} 47... exf4 {[%clk 0:00:51.8]} 48. gxf4 {[%clk 0:00:20.7]} 48... Bf5
{[%clk 0:00:51]} 49. Be4 {[%clk 0:00:20.1]} 49... Rb3 {[%clk 0:00:50.9]} 50. a4
{[%clk 0:00:18.8]} 50... Bxe4+ {[%clk 0:00:47.6]} 51. dxe4 {[%clk 0:00:17.7]}
51... Ra3 {[%clk 0:00:47.3]} 52. Kg2 {[%clk 0:00:16.8]} 52... Rxa4 {[%clk
0:00:47.1]} 53. Kf3 {[%clk 0:00:17.3]} 53... Ra3+ {[%clk 0:00:47.2]} 54. Kg4
{[%clk 0:00:17.6]} 54... Kf7 {[%clk 0:00:47.4]} 55. Rd1 {[%clk 0:00:17]} 55...
d3 {[%clk 0:00:46.6]} 56. Kf3 {[%clk 0:00:15.9]} 56... Ke6 {[%clk 0:00:45.8]}
57. Ke3 {[%clk 0:00:15.8]} 57... g5 {[%clk 0:00:45.8]} 58. fxg5 {[%clk
0:00:15.8]} 58... fxg5 {[%clk 0:00:46.7]} 59. Rg1 {[%clk 0:00:16.4]} 59... Kf6
{[%clk 0:00:44.5]} 60. Rg2 {[%clk 0:00:14.8]} 60... Kg6 {[%clk 0:00:42.5]} 61.
Rg1 {[%clk 0:00:13.2]} 61... Rb3 {[%clk 0:00:42.4]} 62. e5 {[%clk 0:00:12.1]}
62... Kf5 {[%clk 0:00:42]} 63. e6 {[%clk 0:00:12.6]} 63... Rb6 {[%clk
0:00:40.1]} 64. Kxd3 {[%clk 0:00:10.4]} 64... Rxe6 {[%clk 0:00:39.9]} 65. Rf1+
{[%clk 0:00:10.6]} 65... Kg4 {[%clk 0:00:38.8]} 66. Rg1+ {[%clk 0:00:11]} 66...
Kh4 {[%clk 0:00:38.9]} 67. Rh1+ {[%clk 0:00:11.3]} 67... Kg3 {[%clk 0:00:38.9]}
68. Rg1+ {[%clk 0:00:12.2]} 68... Kf4 {[%clk 0:00:38.8]} 69. Rf1+ {[%clk
0:00:12.6]} 69... Kg4 {[%clk 0:00:35.5]} 70. Rg1+ {[%clk 0:00:13.5]} 70... Kh5
{[%clk 0:00:35.7]} 71. Rh1+ {[%clk 0:00:13.9]} 71... Kg6 {[%clk 0:00:35.8]} 72.
Rg1 {[%clk 0:00:14.8]} 72... Re7 {[%clk 0:00:35.5]} 73. Kd4 {[%clk 0:00:13.7]}
73... Re8 {[%clk 0:00:34.9]} 74. Kd3 {[%clk 0:00:13.9]} 74... Kf6 {[%clk
0:00:34.3]} 75. Rf1+ {[%clk 0:00:13.8]} 75... Kg7 {[%clk 0:00:34.5]} 76. Rg1
{[%clk 0:00:14.1]} 76... Kg6 {[%clk 0:00:35.4]} 77. Kd4 {[%clk 0:00:13.5]} 77...
Re2 {[%clk 0:00:27.9]} 78. Kd3 {[%clk 0:00:13.3]} 78... Re5 {[%clk 0:00:27.4]}
79. Kd4 {[%clk 0:00:12.7]} 79... Re7 {[%clk 0:00:27.9]} 80. Kd3 {[%clk
0:00:12.8]} 80... Kh6 {[%clk 0:00:28.2]} 81. Rh1+ {[%clk 0:00:12.7]} 81... Kg7
{[%clk 0:00:28.5]} 82. Rg1 {[%clk 0:00:13.6]} 82... Kf6 {[%clk 0:00:29]} 83.
Rf1+ {[%clk 0:00:13.3]} 83... Kg6 {[%clk 0:00:28.9]} 84. Rg1 {[%clk 0:00:14.2]}
84... Rd7+ {[%clk 0:00:28.5]} 85. Ke3 {[%clk 0:00:14.1]} 85... Rf7 {[%clk
0:00:29.4]} 86. Rg2 {[%clk 0:00:12.1]} 86... Rf4 {[%clk 0:00:29.3]} 87. Rg1
{[%clk 0:00:11]} 87... Kh5 {[%clk 0:00:29.4]} 88. Rh1+ {[%clk 0:00:10.6]} 88...
Kg4 {[%clk 0:00:29.8]} 89. Rg1+ {[%clk 0:00:10.3]} 89... Kf5 {[%clk 0:00:30.4]}
90. Rg2 {[%clk 0:00:09.4]} 90... g4 {[%clk 0:00:29.9]} 91. Ra2 {[%clk
0:00:08.1]} 91... Rf3+ {[%clk 0:00:30.2]} 92. Ke2 {[%clk 0:00:08.4]} 92... Kf4
{[%clk 0:00:30.6]} 93. Ra1 {[%clk 0:00:04.3]} 93... Kg3 {[%clk 0:00:27.2]} 94.
Rg1+ {[%clk 0:00:04.8]} 94... Kh3 {[%clk 0:00:27.6]} 95. Rh1+ {[%clk 0:00:05.2]}
95... Kg2 {[%clk 0:00:27.5]} 96. Rh8 {[%clk 0:00:06.1]} 96... g3 {[%clk
0:00:26.7]} 97. Rg8 {[%clk 0:00:07]} 97... Rf7 {[%clk 0:00:26.4]} 98. Ke3 {[%clk
0:00:07.9]} 98... Re7+ {[%clk 0:00:24.2]} 99. Kf4 {[%clk 0:00:08.8]} 99... Rf7+
{[%clk 0:00:24.1]} 100. Ke3 {[%clk 0:00:09.6]} 100... Kh2 {[%clk 0:00:23.8]}
101. Ke2 {[%clk 0:00:10.5]} 101... g2 {[%clk 0:00:23.4]} 102. Rh8+ {[%clk
0:00:11.4]} 102... Kg1 {[%clk 0:00:23.4]} 103. Rg8 {[%clk 0:00:12.3]} 103... Rf5
{[%clk 0:00:21.4]} 104. Rg7 {[%clk 0:00:11.6]} 104... Kh2 {[%clk 0:00:21.3]}
105. Rh7+ {[%clk 0:00:11.5]} 105... Kg3 {[%clk 0:00:21.6]} 106. Rg7+ {[%clk
0:00:11.7]} 106... Kh3 {[%clk 0:00:21.5]} 107. Rh7+ {[%clk 0:00:12.2]} 107...
Kg3 {[%clk 0:00:20.5]} 108. Rg7+ {[%clk 0:00:12]} 108... Kh2 {[%clk 0:00:21]}
109. Rh7+ {[%clk 0:00:12]} 109... Kg1 {[%clk 0:00:21.9]} 110. Rg7 {[%clk
0:00:12.9]} 110... Rf8 {[%clk 0:00:21.8]} 111. Rg6 {[%clk 0:00:12.1]} 111... Rf1
{[%clk 0:00:21.7]} 112. Rg7 {[%clk 0:00:12.1]} 112... Ra1 {[%clk 0:00:19.9]}
113. Rh7 {[%clk 0:00:10.2]} 113... Ra2+ {[%clk 0:00:19.8]} 114. Ke1 {[%clk
0:00:10.7]} 114... Ra3 {[%clk 0:00:18.6]} 115. Ke2 {[%clk 0:00:10.6]} 115... Ra5
{[%clk 0:00:18.7]} 116. Rh8 {[%clk 0:00:08.8]} 116... Re5+ {[%clk 0:00:18.6]}
117. Kd2 {[%clk 0:00:09.3]} 117... Kf1 {[%clk 0:00:18.5]} 118. Rf8+ {[%clk
0:00:09.1]} 118... Kg1 {[%clk 0:00:18.4]} 119. Rh8 {[%clk 0:00:08.3]} 119... Re7
{[%clk 0:00:18.8]} 120. Rh6 {[%clk 0:00:05.6]} 120... Re5 {[%clk 0:00:18.9]}
121. Rh8 {[%clk 0:00:05.6]} 1/2-1/2

[Event "*** SCC Grand Prix: Titled Tuesday Blitz"]
[Site "Chess.com"]
[Date "2020.07.07"]
[Round "3"]
[White "fish7728"]
[Black "dennisodessa"]
[Result "0-1"]
[WhiteElo "2171"]
[BlackElo "2437"]
[TimeControl "180+1"]
[EndTime "10:23:22 PDT"]
[Termination "dennisodessa won by resignation"]

1. d4 {[%clk 0:03:00.5]} 1... e6 {[%clk 0:03:00.9]} 2. c4 {[%clk 0:03:00.1]}
2... Nf6 {[%clk 0:03:01.1]} 3. Nc3 {[%clk 0:02:59.9]} 3... Bb4 {[%clk
0:03:01.5]} 4. f3 {[%clk 0:03:00.4]} 4... c5 {[%clk 0:02:58.4]} 5. d5 {[%clk
0:03:00]} 5... O-O {[%clk 0:02:56.5]} 6. e4 {[%clk 0:02:58.7]} 6... Re8 {[%clk
0:02:57.1]} 7. Bd2 {[%clk 0:02:54.7]} 7... b5 {[%clk 0:02:51.9]} 8. a3 {[%clk
0:02:51.3]} 8... Bxc3 {[%clk 0:02:48]} 9. Bxc3 {[%clk 0:02:51.1]} 9... bxc4
{[%clk 0:02:48.9]} 10. Bxc4 {[%clk 0:02:50.8]} 10... exd5 {[%clk 0:02:40.3]} 11.
Bxd5 {[%clk 0:02:51.7]} 11... Nc6 {[%clk 0:02:41]} 12. Ne2 {[%clk 0:02:50.8]}
12... Ba6 {[%clk 0:02:40.6]} 13. O-O {[%clk 0:02:43]} 13... Nxd5 {[%clk
0:02:37.3]} 14. exd5 {[%clk 0:02:39.7]} 14... Bxe2 {[%clk 0:02:37.3]} 0-1

[Event "*** SCC Grand Prix: Titled Tuesday Blitz"]
[Site "Chess.com"]
[Date "2020.07.07"]
[Round "3"]
[White "HarryCun"]
[Black "sergeikim"]
[Result "1-0"]
[WhiteElo "2194"]
[BlackElo "2399"]
[TimeControl "180+1"]
[EndTime "10:24:36 PDT"]
[Termination "HarryCun won by checkmate"]

1. Nf3 {[%clk 0:03:00.9]} 1... Nf6 {[%clk 0:02:59]} 2. g3 {[%clk 0:03:01.6]}
2... g6 {[%clk 0:02:59.2]} 3. Bg2 {[%clk 0:03:02.2]} 3... Bg7 {[%clk 0:02:59.7]}
4. O-O {[%clk 0:03:02.8]} 4... d6 {[%clk 0:03:00.3]} 5. d3 {[%clk 0:03:03.7]}
5... O-O {[%clk 0:03:00.4]} 6. Nbd2 {[%clk 0:03:03.4]} 6... c5 {[%clk
0:03:00.2]} 7. e4 {[%clk 0:03:03.6]} 7... Nc6 {[%clk 0:03:00.7]} 8. Re1 {[%clk
0:03:02.9]} 8... e5 {[%clk 0:03:00.7]} 9. h3 {[%clk 0:03:03.2]} 9... h6 {[%clk
0:03:00.4]} 10. g4 {[%clk 0:03:03.5]} 10... Be6 {[%clk 0:02:59.9]} 11. Nf1
{[%clk 0:03:03.3]} 11... Qd7 {[%clk 0:02:58.4]} 12. Ng3 {[%clk 0:03:03.1]} 12...
Nd4 {[%clk 0:02:44.1]} 13. Nxd4 {[%clk 0:03:02.1]} 13... cxd4 {[%clk 0:02:43.1]}
14. f4 {[%clk 0:03:02.5]} 14... exf4 {[%clk 0:02:41.5]} 15. Bxf4 {[%clk
0:03:01.5]} 15... Rac8 {[%clk 0:02:34.1]} 16. e5 {[%clk 0:02:57.2]} 16... dxe5
{[%clk 0:02:27.6]} 17. Bxe5 {[%clk 0:02:56.2]} 17... Nd5 {[%clk 0:02:14.9]} 18.
Bxg7 {[%clk 0:02:55.5]} 18... Kxg7 {[%clk 0:02:14.9]} 19. Ne4 {[%clk 0:02:55.1]}
19... Ne3 {[%clk 0:02:11.5]} 20. Qf3 {[%clk 0:02:48.6]} 20... Nxc2 {[%clk
0:02:05.7]} 21. Qf6+ {[%clk 0:02:48.5]} 21... Kh7 {[%clk 0:02:05.4]} 22. Qh4
{[%clk 0:02:45.3]} 22... Qd8 {[%clk 0:02:02.9]} 23. Nf6+ {[%clk 0:02:38.1]}
23... Kg7 {[%clk 0:02:00.7]} 24. Rf1 {[%clk 0:02:38.4]} 24... Nxa1 {[%clk
0:01:56.5]} 25. g5 {[%clk 0:02:37.6]} 25... hxg5 {[%clk 0:01:49.9]} 26. Qh7#
{[%clk 0:02:36.4]} 1-0

[Event "*** SCC Grand Prix: Titled Tuesday Blitz"]
[Site "Chess.com"]
[Date "2020.07.07"]
[Round "3"]
[White "DonBroca"]
[Black "SavelievAlexei"]
[Result "0-1"]
[WhiteElo "2130"]
[BlackElo "2383"]
[TimeControl "180+1"]
[EndTime "10:24:46 PDT"]
[Termination "SavelievAlexei won by resignation"]

1. c4 {[%clk 0:02:54.8]} 1... c5 {[%clk 0:02:57.9]} 2. Nc3 {[%clk 0:02:52]} 2...
Nc6 {[%clk 0:02:52.4]} 3. e3 {[%clk 0:02:50.2]} 3... e6 {[%clk 0:02:47.2]} 4.
Nf3 {[%clk 0:02:50.3]} 4... Nf6 {[%clk 0:02:45.4]} 5. d4 {[%clk 0:02:49.5]} 5...
d5 {[%clk 0:02:46.3]} 6. Be2 {[%clk 0:02:47.5]} 6... a6 {[%clk 0:02:42.4]} 7.
O-O {[%clk 0:02:44]} 7... dxc4 {[%clk 0:02:41.5]} 8. Bxc4 {[%clk 0:02:34.1]}
8... b5 {[%clk 0:02:41.1]} 9. Be2 {[%clk 0:02:13.7]} 9... Bb7 {[%clk 0:02:40.3]}
10. Ne5 {[%clk 0:02:01.2]} 10... Qb6 {[%clk 0:02:38.9]} 11. dxc5 {[%clk
0:01:44.6]} 11... Bxc5 {[%clk 0:02:39.8]} 12. Ne4 {[%clk 0:01:41.4]} 12... Nxe5
{[%clk 0:02:34.2]} 0-1

[Event "*** SCC Grand Prix: Titled Tuesday Blitz"]
[Site "Chess.com"]
[Date "2020.07.07"]
[Round "3"]
[White "Kate1606"]
[Black "tk22h"]
[Result "0-1"]
[WhiteElo "1419"]
[BlackElo "2288"]
[TimeControl "180+1"]
[EndTime "10:25:20 PDT"]
[Termination "tk22h won by checkmate"]

1. e4 {[%clk 0:02:50.6]} 1... e5 {[%clk 0:02:58.9]} 2. Nf3 {[%clk 0:02:49.4]}
2... Nc6 {[%clk 0:02:59]} 3. d4 {[%clk 0:02:48.7]} 3... exd4 {[%clk 0:02:58.3]}
4. Bc4 {[%clk 0:02:48.7]} 4... Nf6 {[%clk 0:02:58.2]} 5. e5 {[%clk 0:02:48.1]}
5... Ne4 {[%clk 0:02:57.9]} 6. O-O {[%clk 0:02:44.6]} 6... Be7 {[%clk
0:02:56.8]} 7. Re1 {[%clk 0:02:42]} 7... d5 {[%clk 0:02:55.4]} 8. Bb5 {[%clk
0:02:25.4]} 8... O-O {[%clk 0:02:49.8]} 9. Bxc6 {[%clk 0:02:22.6]} 9... bxc6
{[%clk 0:02:49.6]} 10. Nxd4 {[%clk 0:02:21.1]} 10... Bc5 {[%clk 0:02:49]} 11. f3
{[%clk 0:02:06.5]} 11... Ng5 {[%clk 0:02:47.7]} 12. f4 {[%clk 0:02:06]} 12...
Ne4 {[%clk 0:02:47.7]} 13. Be3 {[%clk 0:02:05]} 13... f5 {[%clk 0:02:46.2]} 14.
Nxc6 {[%clk 0:01:34.1]} 14... Qd7 {[%clk 0:02:35.4]} 15. Bxc5 {[%clk 0:01:30.1]}
15... Qxc6 {[%clk 0:02:30.2]} 16. Bxf8 {[%clk 0:01:21.7]} 16... Qb6+ {[%clk
0:02:29.8]} 17. Kh1 {[%clk 0:00:59.6]} 17... Nf2+ {[%clk 0:02:29.5]} 18. Kg1
{[%clk 0:00:59.2]} 18... Nh3+ {[%clk 0:02:29.3]} 19. Kh1 {[%clk 0:00:58.4]}
19... Qg1+ {[%clk 0:02:29.1]} 20. Rxg1 {[%clk 0:00:54.6]} 20... Nf2# {[%clk
0:02:29]} 0-1

[Event "*** SCC Grand Prix: Titled Tuesday Blitz"]
[Site "Chess.com"]
[Date "2020.07.07"]
[Round "3"]
[White "Fandorine"]
[Black "fmshawnrl123"]
[Result "1-0"]
[WhiteElo "2885"]
[BlackElo "2642"]
[TimeControl "180+1"]
[EndTime "10:25:28 PDT"]
[Termination "Fandorine won by resignation"]

1. e4 {[%clk 0:03:00.9]} 1... c6 {[%clk 0:03:00]} 2. Nf3 {[%clk 0:03:00.9]} 2...
d5 {[%clk 0:03:00.9]} 3. d3 {[%clk 0:03:01.6]} 3... dxe4 {[%clk 0:02:58.8]} 4.
dxe4 {[%clk 0:03:02.5]} 4... Qxd1+ {[%clk 0:02:59.4]} 5. Kxd1 {[%clk 0:03:03.2]}
5... g6 {[%clk 0:03:00.3]} 6. Nbd2 {[%clk 0:03:01.8]} 6... Bg7 {[%clk
0:02:59.8]} 7. Ne1 {[%clk 0:03:02.1]} 7... Nf6 {[%clk 0:02:59.7]} 8. Nd3 {[%clk
0:03:01.9]} 8... O-O {[%clk 0:02:58.8]} 9. c3 {[%clk 0:03:02.1]} 9... Rd8 {[%clk
0:02:58.8]} 10. Kc2 {[%clk 0:03:01.9]} 10... a5 {[%clk 0:02:55.9]} 11. a4 {[%clk
0:03:01.3]} 11... Na6 {[%clk 0:02:56.1]} 12. f3 {[%clk 0:03:01.2]} 12... Nd7
{[%clk 0:02:56.2]} 13. Nc4 {[%clk 0:02:59.5]} 13... Nac5 {[%clk 0:02:50.5]} 14.
Nxc5 {[%clk 0:02:56.6]} 14... Nxc5 {[%clk 0:02:51.4]} 15. Be3 {[%clk 0:02:57.1]}
15... Ne6 {[%clk 0:02:38.7]} 16. Bb6 {[%clk 0:02:50.8]} 16... Rf8 {[%clk
0:02:38.9]} 17. Rd1 {[%clk 0:02:46]} 17... f5 {[%clk 0:02:38.3]} 18. exf5 {[%clk
0:02:42.9]} 18... Rxf5 {[%clk 0:02:36]} 19. Be3 {[%clk 0:02:20.7]} 19... b5
{[%clk 0:02:22.6]} 20. Nb6 {[%clk 0:02:16.2]} 20... Rb8 {[%clk 0:02:22.2]} 21.
Nxc8 {[%clk 0:02:05.5]} 21... Rxc8 {[%clk 0:02:23.1]} 22. Bd3 {[%clk 0:02:05.2]}
22... Re5 {[%clk 0:02:22.9]} 23. Rhe1 {[%clk 0:02:05.2]} 23... bxa4 {[%clk
0:02:10]} 24. Bc4 {[%clk 0:01:59.9]} 24... Kf8 {[%clk 0:02:02.4]} 25. f4 {[%clk
0:01:51]} 25... Re4 {[%clk 0:02:02.2]} 26. Bd3 {[%clk 0:01:50.5]} 26... Rxf4
{[%clk 0:02:01.7]} 27. Bxf4 {[%clk 0:01:50.7]} 27... Nxf4 {[%clk 0:02:02.6]} 28.
Rf1 {[%clk 0:01:51.2]} 1-0

[Event "*** SCC Grand Prix: Titled Tuesday Blitz"]
[Site "Chess.com"]
[Date "2020.07.07"]
[Round "3"]
[White "Undisputed92"]
[Black "random_mango"]
[Result "1-0"]
[WhiteElo "2568"]
[BlackElo "2370"]
[TimeControl "180+1"]
[EndTime "10:25:35 PDT"]
[Termination "Undisputed92 won by resignation"]

1. e4 {[%clk 0:03:00.9]} 1... e5 {[%clk 0:02:59.6]} 2. Nf3 {[%clk 0:03:00.2]}
2... Nc6 {[%clk 0:02:59.7]} 3. Bb5 {[%clk 0:03:00.7]} 3... a6 {[%clk 0:03:00]}
4. Ba4 {[%clk 0:03:00.9]} 4... Nf6 {[%clk 0:02:59.8]} 5. O-O {[%clk 0:03:01]}
5... Be7 {[%clk 0:02:59.9]} 6. d3 {[%clk 0:03:01]} 6... b5 {[%clk 0:02:59.6]} 7.
Bb3 {[%clk 0:03:01.1]} 7... d6 {[%clk 0:03:00.5]} 8. a3 {[%clk 0:03:00.6]} 8...
O-O {[%clk 0:02:59.9]} 9. Nc3 {[%clk 0:03:00.3]} 9... Bg4 {[%clk 0:02:44]} 10.
Be3 {[%clk 0:02:54.8]} 10... Nd4 {[%clk 0:02:42.7]} 11. Bxd4 {[%clk 0:02:54.9]}
11... exd4 {[%clk 0:02:43.6]} 12. Nd5 {[%clk 0:02:55]} 12... Nd7 {[%clk
0:02:23.5]} 13. h3 {[%clk 0:02:53.9]} 13... Bxf3 {[%clk 0:02:18.3]} 14. Qxf3
{[%clk 0:02:54.8]} 14... c6 {[%clk 0:02:14.1]} 15. Nf4 {[%clk 0:02:46.9]} 15...
Bg5 {[%clk 0:02:09.5]} 16. Ne2 {[%clk 0:02:45.5]} 16... c5 {[%clk 0:02:08.1]}
17. Qg3 {[%clk 0:02:43.8]} 17... Qf6 {[%clk 0:01:52.4]} 18. Bd5 {[%clk
0:02:41.2]} 18... Rae8 {[%clk 0:01:48.7]} 19. f4 {[%clk 0:02:40.6]} 19... Bh4
{[%clk 0:01:48.1]} 20. Qf3 {[%clk 0:02:40.5]} 20... Qh6 {[%clk 0:01:39.1]} 21.
a4 {[%clk 0:02:21.6]} 21... Nb6 {[%clk 0:01:34.3]} 22. Bc6 {[%clk 0:02:19.4]}
22... Nxa4 {[%clk 0:01:34.2]} 23. Bxe8 {[%clk 0:02:18.2]} 23... Rxe8 {[%clk
0:01:35.1]} 24. b3 {[%clk 0:02:18.3]} 24... Nc3 {[%clk 0:01:32.5]} 25. Nxc3
{[%clk 0:02:17.1]} 25... dxc3 {[%clk 0:01:33.4]} 26. Rxa6 {[%clk 0:02:17.2]}
26... Bf6 {[%clk 0:01:34]} 27. e5 {[%clk 0:02:15.1]} 27... dxe5 {[%clk
0:01:33.3]} 28. fxe5 {[%clk 0:02:15.4]} 1-0

[Event "*** SCC Grand Prix: Titled Tuesday Blitz"]
[Site "Chess.com"]
[Date "2020.07.07"]
[Round "3"]
[White "AldokhinIvan"]
[Black "Chessdemon2019"]
[Result "1-0"]
[WhiteElo "2519"]
[BlackElo "2289"]
[TimeControl "180+1"]
[EndTime "10:25:44 PDT"]
[Termination "AldokhinIvan won by resignation"]

1. e4 {[%clk 0:02:59.9]} 1... c5 {[%clk 0:02:59.7]} 2. Nf3 {[%clk 0:03:00.2]}
2... d6 {[%clk 0:03:00.3]} 3. d4 {[%clk 0:03:01.1]} 3... cxd4 {[%clk 0:03:01.2]}
4. Nxd4 {[%clk 0:03:01.7]} 4... Nf6 {[%clk 0:03:01.7]} 5. Nc3 {[%clk 0:03:02.4]}
5... a6 {[%clk 0:03:02.3]} 6. Bc4 {[%clk 0:03:02.5]} 6... e6 {[%clk 0:03:02.3]}
7. Bb3 {[%clk 0:03:03]} 7... Nbd7 {[%clk 0:03:01.2]} 8. O-O {[%clk 0:03:03.5]}
8... Nc5 {[%clk 0:03:01.1]} 9. Re1 {[%clk 0:03:01.9]} 9... Be7 {[%clk
0:03:00.2]} 10. Qf3 {[%clk 0:03:01.9]} 10... O-O {[%clk 0:02:58.8]} 11. Qg3
{[%clk 0:03:01.4]} 11... b5 {[%clk 0:02:56.1]} 12. Bh6 {[%clk 0:03:01.3]} 12...
Ne8 {[%clk 0:02:52]} 13. Nc6 {[%clk 0:02:58.9]} 13... Qc7 {[%clk 0:02:48.4]} 14.
Nxe7+ {[%clk 0:02:48]} 14... Qxe7 {[%clk 0:02:49.3]} 15. Rad1 {[%clk 0:02:42.5]}
15... Bb7 {[%clk 0:02:44.9]} 16. Bg5 {[%clk 0:02:39.7]} 16... Qc7 {[%clk
0:02:41.3]} 17. e5 {[%clk 0:02:35.5]} 17... dxe5 {[%clk 0:02:34]} 18. Qh4 {[%clk
0:02:29.5]} 18... f6 {[%clk 0:02:26.9]} 19. Be3 {[%clk 0:02:25]} 19... Nxb3
{[%clk 0:02:26.4]} 20. axb3 {[%clk 0:02:23.5]} 20... Qc6 {[%clk 0:02:26.6]} 21.
f3 {[%clk 0:02:23]} 21... Nc7 {[%clk 0:02:25.2]} 22. Ne4 {[%clk 0:02:22]} 22...
Rad8 {[%clk 0:02:22.2]} 23. Bc5 {[%clk 0:02:18.7]} 23... Rfe8 {[%clk 0:02:16]}
24. c4 {[%clk 0:02:12.7]} 24... Rxd1 {[%clk 0:02:08.3]} 25. Rxd1 {[%clk
0:02:12]} 25... f5 {[%clk 0:02:09]} 26. Rd6 {[%clk 0:02:11.8]} 26... fxe4 {[%clk
0:01:58.1]} 27. Rxc6 {[%clk 0:02:11.5]} 27... Bxc6 {[%clk 0:01:58.8]} 28. fxe4
{[%clk 0:02:11.9]} 28... bxc4 {[%clk 0:01:33.6]} 29. bxc4 {[%clk 0:02:11.6]}
29... Ba4 {[%clk 0:01:34.3]} 30. Bd6 {[%clk 0:02:09.5]} 30... Na8 {[%clk
0:01:30.1]} 31. Bxe5 {[%clk 0:02:09.3]} 31... Nb6 {[%clk 0:01:30.5]} 32. Qg5
{[%clk 0:02:05.2]} 1-0

[Event "*** SCC Grand Prix: Titled Tuesday Blitz"]
[Site "Chess.com"]
[Date "2020.07.07"]
[Round "3"]
[White "aa175"]
[Black "lukas_111111"]
[Result "1-0"]
[WhiteElo "2359"]
[BlackElo "2511"]
[TimeControl "180+1"]
[EndTime "10:26:01 PDT"]
[Termination "aa175 won by checkmate"]

1. d4 {[%clk 0:03:00.9]} 1... d5 {[%clk 0:02:59.9]} 2. Bf4 {[%clk 0:03:00.1]}
2... Nf6 {[%clk 0:02:58.4]} 3. e3 {[%clk 0:03:00.6]} 3... e6 {[%clk 0:02:58.6]}
4. Nf3 {[%clk 0:03:00.7]} 4... c5 {[%clk 0:02:58.7]} 5. Nbd2 {[%clk 0:03:01.1]}
5... Bd6 {[%clk 0:02:58.7]} 6. c3 {[%clk 0:02:59.5]} 6... O-O {[%clk 0:02:58.6]}
7. Bd3 {[%clk 0:02:59]} 7... Qc7 {[%clk 0:02:58.7]} 8. Bxd6 {[%clk 0:02:58.1]}
8... Qxd6 {[%clk 0:02:58.4]} 9. Ne5 {[%clk 0:02:58.4]} 9... Nfd7 {[%clk
0:02:54]} 10. f4 {[%clk 0:02:56.7]} 10... Nc6 {[%clk 0:02:43.5]} 11. h4 {[%clk
0:02:36.4]} 11... Ne7 {[%clk 0:02:37.4]} 12. g4 {[%clk 0:02:18.4]} 12... f6
{[%clk 0:02:37.1]} 13. Nxd7 {[%clk 0:02:11.9]} 13... Bxd7 {[%clk 0:02:37.3]} 14.
Nf3 {[%clk 0:02:06.9]} 14... Nc6 {[%clk 0:02:36.6]} 15. Qc2 {[%clk 0:02:01.1]}
15... e5 {[%clk 0:02:31.2]} 16. Bxh7+ {[%clk 0:01:58.5]} 16... Kh8 {[%clk
0:02:31.3]} 17. dxe5 {[%clk 0:01:54.9]} 17... fxe5 {[%clk 0:02:31.2]} 18. Ng5
{[%clk 0:01:47.7]} 18... e4 {[%clk 0:02:22.9]} 19. O-O-O {[%clk 0:01:41.1]}
19... Bxg4 {[%clk 0:02:20.4]} 20. Bxe4 {[%clk 0:01:24]} 20... Bxd1 {[%clk
0:02:18.1]} 21. Rxd1 {[%clk 0:01:24.9]} 21... Qe7 {[%clk 0:02:10]} 22. Bxd5
{[%clk 0:01:09.7]} 22... g6 {[%clk 0:01:55]} 23. Qxg6 {[%clk 0:01:07.6]} 23...
Rf6 {[%clk 0:01:47.8]} 24. Qh5+ {[%clk 0:01:05.9]} 24... Kg7 {[%clk 0:01:47.8]}
25. Qh7+ {[%clk 0:01:06]} 25... Kf8 {[%clk 0:01:48.1]} 26. Qh8# {[%clk
0:01:06.9]} 1-0